Workbook

Sheet 原始数据整理
A1: 类型 | B1: 表面风化 | C1: 文物采样点 | D1: 二氧化硅(SiO2) | E1: 氧化钠(Na2O) | F1: 氧化钾(K2O) | G1: 氧化钙(CaO) | H1: 氧化镁(MgO) | I1: 氧化铝(Al2O3) | J1: 氧化铁(Fe2O3) | K1: 氧化铜(CuO) | L1: 氧化铅(PbO) | M1: 氧化钡(BaO) | N1: 五氧化二磷(P2O5) | O1: 氧化锶(SrO) | P1: 氧化锡(SnO2) | Q1: 二氧化硫(SO2) | R1: 百分比 | S1: 文物编号 | T1: 纹饰 | U1: 颜色
A2: 高钾 | B2: 风化 | C2: 07 | D2: 92.63 | E2: 0 | F2: 0 | G2: 1.07 | H2: 0 | I2: 1.98 | J2: 0.17 | K2: 3.24 | L2: 0 | M2: 0 | N2: 0.61 | O2: 0 | P2: 0 | Q2: 0 | R2: 99.7 | S2: 07 | T2: B | U2: 蓝绿
A3: 高钾 | B3: 风化 | C3: 09 | D3: 95.02 | E3: 0 | F3: 0.59 | G3: 0.62 | H3: 0 | I3: 1.32 | J3: 0.32 | K3: 1.55 | L3: 0 | M3: 0 | N3: 0.35 | O3: 0 | P3: 0 | Q3: 0 | R3: 99.77 | S3: 09 | T3: B | U3: 蓝绿
A4: 高钾 | B4: 风化 | C4: 10 | D4: 96.77 | E4: 0 | F4: 0.92 | G4: 0.21 | H4: 0 | I4: 0.81 | J4: 0.26 | K4: 0.84 | L4: 0 | M4: 0 | N4: 0 | O4: 0 | P4: 0 | Q4: 0 | R4: 99.81 | S4: 10 | T4: B | U4: 蓝绿
A5: 高钾 | B5: 风化 | C5: 12 | D5: 94.29 | E5: 0 | F5: 1.01 | G5: 0.72 | H5: 0 | I5: 1.46 | J5: 0.29 | K5: 1.65 | L5: 0 | M5: 0 | N5: 0.15 | O5: 0 | P5: 0 | Q5: 0 | R5: 99.57 | S5: 12 | T5: B | U5: 蓝绿
A6: 高钾 | B6: 风化 | C6: 22 | D6: 92.35 | E6: 0 | F6: 0.74 | G6: 1.66 | H6: 0.64 | I6: 3.5 | J6: 0.35 | K6: 0.55 | L6: 0 | M6: 0 | N6: 0.21 | O6: 0 | P6: 0 | Q6: 0 | R6: 100 | S6: 22 | T6: B | U6: 蓝绿
A7: 高钾 | B7: 风化 | C7: 27 | D7: 92.72 | E7: 0 | F7: 0 | G7: 0.94 | H7: 0.54 | I7: 2.51 | J7: 0.2 | K7: 1.54 | L7: 0 | M7: 0 | N7: 0.36 | O7: 0 | P7: 0 | Q7: 0 | R7: 98.81 | S7: 27 | T7: B | U7: 蓝绿
A8: 高钾 | B8: 无风化 | C8: 01 | D8: 69.33 | E8: 0 | F8: 9.99 | G8: 6.32 | H8: 0.87 | I8: 3.93 | J8: 1.74 | K8: 3.87 | L8: 0 | M8: 0 | N8: 1.17 | O8: 0 | P8: 0 | Q8: 0.39 | R8: 97.61 | S8: 01 | T8: C | U8: 蓝绿
A9: 高钾 | B9: 无风化 | C9: 03部位1 | D9: 87.05 | E9: 0 | F9: 5.19 | G9: 2.01 | H9: 0 | I9: 4.06 | J9: 0 | K9: 0.78 | L9: 0.25 | M9: 0 | N9: 0.66 | O9: 0 | P9: 0 | Q9: 0 | R9: 100 | S9: 03 | T9: A | U9: 蓝绿
A10: 高钾 | B10: 无风化 | C10: 03部位2 | D10: 61.71 | E10: 0 | F10: 12.37 | G10: 5.87 | H10: 1.11 | I10: 5.5 | J10: 2.16 | K10: 5.09 | L10: 1.41 | M10: 2.86 | N10: 0.7 | O10: 0.1 | P10: 0 | Q10: 0 | R10: 98.88 | S10: 03 | T10: A | U10: 蓝绿
A11: 高钾 | B11: 无风化 | C11: 04 | D11: 65.88 | E11: 0 | F11: 9.67 | G11: 7.12 | H11: 1.56 | I11: 6.44 | J11: 2.06 | K11: 2.18 | L11: 0 | M11: 0 | N11: 0.79 | O11: 0 | P11: 0 | Q11: 0.36 | R11: 96.06 | S11: 04 | T11: A | U11: 蓝绿
A12: 高钾 | B12: 无风化 | C12: 05 | D12: 61.58 | E12: 0 | F12: 10.95 | G12: 7.35 | H12: 1.77 | I12: 7.5 | J12: 2.62 | K12: 3.27 | L12: 0 | M12: 0 | N12: 0.94 | O12: 0.06 | P12: 0 | Q12: 0.47 | R12: 96.51 | S12: 05 | T12: A | U12: 蓝绿
A13: 高钾 | B13: 无风化 | C13: 06部位1 | D13: 67.65 | E13: 0 | F13: 7.37 | G13: 0 | H13: 1.98 | I13: 11.15 | J13: 2.39 | K13: 2.51 | L13: 0.2 | M13: 1.38 | N13: 4.18 | O13: 0.11 | P13: 0 | Q13: 0 | R13: 98.92 | S13: 06 | T13: A | U13: 蓝绿
A14: 高钾 | B14: 无风化 | C14: 06部位2 | D14: 59.81 | E14: 0 | F14: 7.68 | G14: 5.41 | H14: 1.73 | I14: 10.05 | J14: 6.04 | K14: 2.18 | L14: 0.35 | M14: 0.97 | N14: 4.5 | O14: 0.12 | P14: 0 | Q14: 0 | R14: 98.84 | S14: 06 | T14: A | U14: 蓝绿
A15: 高钾 | B15: 无风化 | C15: 13 | D15: 59.01 | E15: 2.86 | F15: 12.53 | G15: 8.7 | H15: 0 | I15: 6.16 | J15: 2.88 | K15: 4.73 | L15: 0 | M15: 0 | N15: 1.27 | O15: 0 | P15: 0 | Q15: 0 | R15: 98.14 | S15: 13 | T15: C | U15: 浅蓝
A16: 高钾 | B16: 无风化 | C16: 14 | D16: 62.47 | E16: 3.38 | F16: 12.28 | G16: 8.23 | H16: 0.66 | I16: 9.23 | J16: 0.5 | K16: 0.47 | L16: 1.62 | M16: 0 | N16: 0.16 | O16: 0 | P16: 0 | Q16: 0 | R16: 99 | S16: 14 | T16: C | U16: 深绿
A17: 高钾 | B17: 无风化 | C17: 16 | D17: 65.18 | E17: 2.1 | F17: 14.52 | G17: 8.27 | H17: 0.52 | I17: 6.18 | J17: 0.42 | K17: 1.07 | L17: 0.11 | M17: 0 | N17: 0 | O17: 0.04 | P17: 0 | Q17: 0 | R17: 98.41 | S17: 16 | T17: C | U17: 浅蓝
A18: 高钾 | B18: 无风化 | C18: 18 | D18: 79.46 | E18: 0 | F18: 9.42 | G18: 0 | H18: 1.53 | I18: 3.05 | J18: 0 | K18: 0 | L18: 0 | M18: 0 | N18: 1.36 | O18: 0.07 | P18: 2.36 | Q18: 0 | R18: 97.25 | S18: 18 | T18: A | U18: 深蓝
A19: 高钾 | B19: 无风化 | C19: 21 | D19: 76.68 | E19: 0 | F19: 0 | G19: 4.71 | H19: 1.22 | I19: 6.19 | J19: 2.37 | K19: 3.28 | L19: 1 | M19: 1.97 | N19: 1.1 | O19: 0 | P19: 0 | Q19: 0 | R19: 98.52 | S19: 21 | T19: A | U19: 蓝绿
A24: 类型 | B24: 表面风化 | C24: 文物采样点 | D24: 二氧化硅(SiO2) | E24: 氧化钠(Na2O) | F24: 氧化钾(K2O) | G24: 氧化钙(CaO) | H24: 氧化镁(MgO) | I24: 氧化铝(Al2O3) | J24: 氧化铁(Fe2O3) | K24: 氧化铜(CuO) | L24: 氧化铅(PbO) | M24: 氧化钡(BaO) | N24: 五氧化二磷(P2O5) | O24: 氧化锶(SrO) | P24: 氧化锡(SnO2) | Q24: 二氧化硫(SO2) | R24: 百分比 | S24: 文物编号 | T24: 纹饰 | U24: 颜色
A25: 铅钡 | B25: 风化 | C25: 02 | D25: 36.28 | E25: 0 | F25: 1.05 | G25: 2.34 | H25: 1.18 | I25: 5.73 | J25: 1.86 | K25: 0.26 | L25: 47.43 | M25: 0 | N25: 3.57 | O25: 0.19 | P25: 0 | Q25: 0 | R25: 99.89 | S25: 02 | T25: A | U25: 浅蓝
A26: 铅钡 | B26: 风化 | C26: 08 | D26: 20.14 | E26: 0 | F26: 0 | G26: 1.48 | H26: 0 | I26: 1.34 | J26: 0 | K26: 10.41 | L26: 28.68 | M26: 31.23 | N26: 3.59 | O26: 0.37 | P26: 0 | Q26: 2.58 | R26: 99.82 | S26: 08 | T26: C | U26: 紫
A27: 铅钡 | B27: 风化 | C27: 08严重风化点 | D27: 4.61 | E27: 0 | F27: 0 | G27: 3.19 | H27: 0 | I27: 1.11 | J27: 0 | K27: 3.14 | L27: 32.45 | M27: 30.62 | N27: 7.56 | O27: 0.53 | P27: 0 | Q27: 15.03 | R27: 98.24 | S27: 08 | T27: C | U27: 紫
A28: 铅钡 | B28: 风化 | C28: 11 | D28: 33.59 | E28: 0 | F28: 0.21 | G28: 3.51 | H28: 0.71 | I28: 2.69 | J28: 0 | K28: 4.93 | L28: 25.39 | M28: 14.61 | N28: 9.38 | O28: 0.37 | P28: 0 | Q28: 0 | R28: 95.39 | S28: 11 | T28: C | U28: 浅蓝
A29: 铅钡 | B29: 风化 | C29: 19 | D29: 29.64 | E29: 0 | F29: 0 | G29: 2.93 | H29: 0.59 | I29: 3.57 | J29: 1.33 | K29: 3.51 | L29: 42.82 | M29: 5.35 | N29: 8.83 | O29: 0.19 | P29: 0 | Q29: 0 | R29: 98.76 | S29: 19 | T29: A
A30: 铅钡 | B30: 风化 | C30: 26 | D30: 19.79 | E30: 0 | F30: 0 | G30: 1.44 | H30: 0 | I30: 0.7 | J30: 0 | K30: 10.57 | L30: 29.53 | M30: 32.25 | N30: 3.13 | O30: 0.45 | P30: 0 | Q30: 1.96 | R30: 99.82 | S30: 26 | T30: C | U30: 紫
A31: 铅钡 | B31: 风化 | C31: 26严重风化点 | D31: 3.72 | E31: 0 | F31: 0.4 | G31: 3.01 | H31: 0 | I31: 1.18 | J31: 0 | K31: 3.6 | L31: 29.92 | M31: 35.45 | N31: 6.04 | O31: 0.62 | P31: 0 | Q31: 15.95 | R31: 99.89 | S31: 26 | T31: C | U31: 紫
A32: 铅钡 | B32: 风化 | C32: 34 | D32: 35.78 | E32: 0 | F32: 0.25 | G32: 0.78 | H32: 0 | I32: 1.62 | J32: 0.47 | K32: 1.51 | L32: 46.55 | M32: 10 | N32: 0.34 | O32: 0.22 | P32: 0 | Q32: 0 | R32: 97.52 | S32: 34 | T32: C | U32: 深绿
A33: 铅钡 | B33: 风化 | C33: 36 | D33: 39.57 | E33: 2.22 | F33: 0.14 | G33: 0.37 | H33: 0 | I33: 1.6 | J33: 0.32 | K33: 0.68 | L33: 41.61 | M33: 10.83 | N33: 0.07 | O33: 0.22 | P33: 0 | Q33: 0 | R33: 97.63 | S33: 36 | T33: C | U33: 深绿
A34: 铅钡 | B34: 风化 | C34: 38 | D34: 32.93 | E34: 1.38 | F34: 0 | G34: 0.68 | H34: 0 | I34: 2.57 | J34: 0.29 | K34: 0.73 | L34: 49.31 | M34: 9.79 | N34: 0.48 | O34: 0.41 | P34: 0 | Q34: 0 | R34: 98.57 | S34: 38 | T34: C | U34: 深绿
A35: 铅钡 | B35: 风化 | C35: 39 | D35: 26.25 | E35: 0 | F35: 0 | G35: 1.11 | H35: 0 | I35: 0.5 | J35: 0 | K35: 0.88 | L35: 61.03 | M35: 7.22 | N35: 1.16 | O35: 0.61 | P35: 0 | Q35: 0 | R35: 98.76 | S35: 39 | T35: C | U35: 深绿
A36: 铅钡 | B36: 风化 | C36: 40 | D36: 16.71 | E36: 0 | F36: 0 | G36: 1.87 | H36: 0 | I36: 0.45 | J36: 0.19 | K36: 0 | L36: 70.21 | M36: 6.69 | N36: 1.77 | O36: 0.68 | P36: 0 | Q36: 0 | R36: 98.57 | S36: 40 | T36: C
A37: 铅钡 | B37: 风化 | C37: 41 | D37: 18.46 | E37: 0 | F37: 0.44 | G37: 4.96 | H37: 2.73 | I37: 3.33 | J37: 1.79 | K37: 0.19 | L37: 44.12 | M37: 9.76 | N37: 7.46 | O37: 0.47 | P37: 0 | Q37: 0 | R37: 93.71 | S37: 41 | T37: C | U37: 浅绿
A38: 铅钡 | B38: 风化 | C38: 43部位1 | D38: 12.41 | E38: 0 | F38: 0 | G38: 5.24 | H38: 0.89 | I38: 2.25 | J38: 0.76 | K38: 5.35 | L38: 59.85 | M38: 7.29 | N38: 0 | O38: 0.64 | P38: 0 | Q38: 0 | R38: 94.68 | S38: 43 | T38: C | U38: 浅蓝
A39: 铅钡 | B39: 风化 | C39: 43部位2 | D39: 21.7 | E39: 0 | F39: 0 | G39: 6.4 | H39: 0.95 | I39: 3.41 | J39: 1.39 | K39: 1.51 | L39: 44.75 | M39: 3.26 | N39: 12.83 | O39: 0.47 | P39: 0 | Q39: 0 | R39: 96.67 | S39: 43 | T39: C | U39: 浅蓝
A40: 铅钡 | B40: 风化 | C40: 48 | D40: 53.33 | E40: 0.8 | F40: 0.32 | G40: 2.82 | H40: 1.54 | I40: 13.65 | J40: 1.03 | K40: 0 | L40: 15.71 | M40: 7.31 | N40: 1.1 | O40: 0.25 | P40: 1.31 | Q40: 0 | R40: 99.17 | S40: 48 | T40: A
A41: 铅钡 | B41: 风化 | C41: 49 | D41: 28.79 | E41: 0 | F41: 0 | G41: 4.58 | H41: 1.47 | I41: 5.38 | J41: 2.74 | K41: 0.7 | L41: 34.18 | M41: 6.1 | N41: 11.1 | O41: 0.46 | P41: 0 | Q41: 0 | R41: 95.5 | S41: 49 | T41: A | U41: 黑
A42: 铅钡 | B42: 风化 | C42: 50 | D42: 17.98 | E42: 0 | F42: 0 | G42: 3.19 | H42: 0.47 | I42: 1.87 | J42: 0.33 | K42: 1.13 | L42: 44 | M42: 14.2 | N42: 6.34 | O42: 0.66 | P42: 0 | Q42: 0 | R42: 90.17 | S42: 50 | T42: A | U42: 黑
A43: 铅钡 | B43: 风化 | C43: 51部位1 | D43: 24.61 | E43: 0 | F43: 0 | G43: 3.58 | H43: 1.19 | I43: 5.25 | J43: 1.19 | K43: 1.37 | L43: 40.24 | M43: 8.94 | N43: 8.1 | O43: 0.39 | P43: 0.47 | Q43: 0 | R43: 95.33 | S43: 51 | T43: C | U43: 浅蓝
A44: 铅钡 | B44: 风化 | C44: 51部位2 | D44: 21.35 | E44: 0 | F44: 0 | G44: 5.13 | H44: 1.45 | I44: 2.51 | J44: 0.42 | K44: 0.75 | L44: 51.34 | M44: 0 | N44: 8.75 | O44: 0 | P44: 0 | Q44: 0 | R44: 91.7 | S44: 51 | T44: C | U44: 浅蓝
A45: 铅钡 | B45: 风化 | C45: 52 | D45: 25.74 | E45: 1.22 | F45: 0 | G45: 2.27 | H45: 0.55 | I45: 1.16 | J45: 0.23 | K45: 0.7 | L45: 47.42 | M45: 8.64 | N45: 5.71 | O45: 0.44 | P45: 0 | Q45: 0 | R45: 94.08 | S45: 52 | T45: C | U45: 浅蓝
A46: 铅钡 | B46: 风化 | C46: 54 | D46: 22.28 | E46: 0 | F46: 0.32 | G46: 3.19 | H46: 1.28 | I46: 4.15 | J46: 0 | K46: 0.83 | L46: 55.46 | M46: 7.04 | N46: 4.24 | O46: 0.88 | P46: 0 | Q46: 0 | R46: 99.67 | S46: 54 | T46: C | U46: 浅蓝
A47: 铅钡 | B47: 风化 | C47: 54严重风化点 | D47: 17.11 | E47: 0 | F47: 0 | G47: 0 | H47: 1.11 | I47: 3.65 | J47: 0 | K47: 1.34 | L47: 58.46 | M47: 0 | N47: 14.13 | O47: 1.12 | P47: 0 | Q47: 0 | R47: 96.92 | S47: 54 | T47: C | U47: 浅蓝
A48: 铅钡 | B48: 风化 | C48: 56 | D48: 29.15 | E48: 0 | F48: 0 | G48: 1.21 | H48: 0 | I48: 1.85 | J48: 0 | K48: 0.79 | L48: 41.25 | M48: 15.45 | N48: 2.54 | O48: 0 | P48: 0 | Q48: 0 | R48: 92.24 | S48: 56 | T48: C | U48: 蓝绿
A49: 铅钡 | B49: 风化 | C49: 57 | D49: 25.42 | E49: 0 | F49: 0 | G49: 1.31 | H49: 0 | I49: 2.18 | J49: 0 | K49: 1.16 | L49: 45.1 | M49: 17.3 | N49: 0 | O49: 0 | P49: 0 | Q49: 0 | R49: 92.47 | S49: 57 | T49: C | U49: 蓝绿
A50: 铅钡 | B50: 风化 | C50: 58 | D50: 30.39 | E50: 0 | F50: 0.34 | G50: 3.49 | H50: 0.79 | I50: 3.52 | J50: 0.86 | K50: 3.13 | L50: 39.35 | M50: 7.66 | N50: 8.99 | O50: 0.24 | P50: 0 | Q50: 0 | R50: 98.76 | S50: 58 | T50: C
A51: 铅钡 | B51: 风化 | C51: 23未风化点 | D51: 53.79 | E51: 7.92 | F51: 0 | G51: 0.5 | H51: 0.71 | I51: 1.42 | J51: 0 | K51: 2.99 | L51: 16.98 | M51: 11.86 | N51: 0 | O51: 0.33 | P51: 0 | Q51: 0 | R51: 96.5 | S51: 23 | T51: A | U51: 蓝绿
A52: 铅钡 | B52: 风化 | C52: 25未风化点 | D52: 50.61 | E52: 2.31 | F52: 0 | G52: 0.63 | H52: 0 | I52: 1.9 | J52: 1.55 | K52: 1.12 | L52: 31.9 | M52: 6.65 | N52: 0.19 | O52: 0.2 | P52: 0 | Q52: 0 | R52: 97.06 | S52: 25 | T52: C | U52: 浅蓝
A53: 铅钡 | B53: 风化 | C53: 28未风化点 | D53: 68.08 | E53: 0 | F53: 0.26 | G53: 1.34 | H53: 1 | I53: 4.7 | J53: 0.41 | K53: 0.33 | L53: 17.14 | M53: 4.04 | N53: 1.04 | O53: 0.12 | P53: 0.23 | Q53: 0 | R53: 98.69 | S53: 28 | T53: A | U53: 浅蓝
A54: 铅钡 | B54: 风化 | C54: 29未风化点 | D54: 63.3 | E54: 0.92 | F54: 0.3 | G54: 2.98 | H54: 1.49 | I54: 14.34 | J54: 0.81 | K54: 0.74 | L54: 12.31 | M54: 2.03 | N54: 0.41 | O54: 0.25 | P54: 0 | Q54: 0 | R54: 99.88 | S54: 29 | T54: A | U54: 浅蓝
A55: 铅钡 | B55: 风化 | C55: 42未风化点1 | D55: 51.26 | E55: 5.74 | F55: 0.15 | G55: 0.79 | H55: 1.09 | I55: 3.53 | J55: 0 | K55: 2.67 | L55: 21.88 | M55: 10.47 | N55: 0.08 | O55: 0.35 | P55: 0 | Q55: 0 | R55: 98.01 | S55: 42 | T55: A | U55: 浅蓝
A56: 铅钡 | B56: 风化 | C56: 42未风化点2 | D56: 51.33 | E56: 5.68 | F56: 0.35 | G56: 0 | H56: 1.16 | I56: 5.66 | J56: 0 | K56: 2.72 | L56: 20.12 | M56: 10.88 | N56: 0 | O56: 0 | P56: 0 | Q56: 0 | R56: 97.9 | S56: 42 | T56: A | U56: 浅蓝
A57: 铅钡 | B57: 风化 | C57: 44未风化点 | D57: 60.74 | E57: 3.06 | F57: 0.2 | G57: 2.14 | H57: 0 | I57: 12.69 | J57: 0.77 | K57: 0.43 | L57: 13.61 | M57: 5.22 | N57: 0 | O57: 0.26 | P57: 0 | Q57: 0 | R57: 99.12 | S57: 44 | T57: A | U57: 浅蓝
A58: 铅钡 | B58: 风化 | C58: 49未风化点 | D58: 54.61 | E58: 0 | F58: 0.3 | G58: 2.08 | H58: 1.2 | I58: 6.5 | J58: 1.27 | K58: 0.45 | L58: 23.02 | M58: 4.19 | N58: 4.32 | O58: 0.3 | P58: 0 | Q58: 0 | R58: 98.24 | S58: 49 | T58: A | U58: 黑
A59: 铅钡 | B59: 风化 | C59: 50未风化点 | D59: 45.02 | E59: 0 | F59: 0 | G59: 3.12 | H59: 0.54 | I59: 4.16 | J59: 0 | K59: 0.7 | L59: 30.61 | M59: 6.22 | N59: 6.34 | O59: 0.23 | P59: 0 | Q59: 0 | R59: 96.94 | S59: 50 | T59: A | U59: 黑
A60: 铅钡 | B60: 风化 | C60: 53未风化点 | D60: 63.66 | E60: 3.04 | F60: 0.11 | G60: 0.78 | H60: 1.14 | I60: 6.06 | J60: 0 | K60: 0.54 | L60: 13.66 | M60: 8.99 | N60: 0 | O60: 0.27 | P60: 0 | Q60: 0 | R60: 98.25 | S60: 53 | T60: A | U60: 浅蓝
A61: 铅钡 | B61: 无风化 | C61: 20 | D61: 37.36 | E61: 0 | F61: 0.71 | G61: 0 | H61: 0 | I61: 5.45 | J61: 1.51 | K61: 4.78 | L61: 9.3 | M61: 23.55 | N61: 5.75 | O61: 0 | P61: 0 | Q61: 0 | R61: 88.41 | S61: 20 | T61: A | U61: 浅蓝
A62: 铅钡 | B62: 无风化 | C62: 24 | D62: 31.94 | E62: 0 | F62: 0 | G62: 0.47 | H62: 0 | I62: 1.59 | J62: 0 | K62: 8.46 | L62: 29.14 | M62: 26.23 | N62: 0.14 | O62: 0.91 | P62: 0 | Q62: 0 | R62: 98.88 | S62: 24 | T62: C | U62: 紫
A63: 铅钡 | B63: 无风化 | C63: 30部位1 | D63: 34.34 | E63: 0 | F63: 1.41 | G63: 4.49 | H63: 0.98 | I63: 4.35 | J63: 2.12 | K63: 0 | L63: 39.22 | M63: 10.29 | N63: 0 | O63: 0.35 | P63: 0.4 | Q63: 0 | R63: 97.95 | S63: 30 | T63: A | U63: 深蓝
A64: 铅钡 | B64: 无风化 | C64: 30部位2 | D64: 36.93 | E64: 0 | F64: 0 | G64: 4.24 | H64: 0.51 | I64: 3.86 | J64: 2.74 | K64: 0 | L64: 37.74 | M64: 10.35 | N64: 1.41 | O64: 0.48 | P64: 0.44 | Q64: 0 | R64: 98.7 | S64: 30 | T64: A | U64: 深蓝
A65: 铅钡 | B65: 无风化 | C65: 31 | D65: 65.91 | E65: 0 | F65: 0 | G65: 1.6 | H65: 0.89 | I65: 3.11 | J65: 4.59 | K65: 0.44 | L65: 16.55 | M65: 3.42 | N65: 1.62 | O65: 0.3 | P65: 0 | Q65: 0 | R65: 98.43 | S65: 31 | T65: C | U65: 紫
A66: 铅钡 | B66: 无风化 | C66: 32 | D66: 69.71 | E66: 0 | F66: 0.21 | G66: 0.46 | H66: 0 | I66: 2.36 | J66: 1 | K66: 0.11 | L66: 19.76 | M66: 4.88 | N66: 0.17 | O66: 0 | P66: 0 | Q66: 0 | R66: 98.66 | S66: 32 | T66: C | U66: 浅绿
A67: 铅钡 | B67: 无风化 | C67: 33 | D67: 75.51 | E67: 0 | F67: 0.15 | G67: 0.64 | H67: 1 | I67: 2.35 | J67: 0 | K67: 0.47 | L67: 16.16 | M67: 3.55 | N67: 0.13 | O67: 0 | P67: 0 | Q67: 0 | R67: 99.96 | S67: 33 | T67: C | U67: 深绿
A68: 铅钡 | B68: 无风化 | C68: 35 | D68: 65.91 | E68: 0 | F68: 0 | G68: 0.38 | H68: 0 | I68: 1.44 | J68: 0.17 | K68: 0.16 | L68: 22.05 | M68: 5.68 | N68: 0.42 | O68: 0 | P68: 0 | Q68: 0 | R68: 96.21 | S68: 35 | T68: C | U68: 浅绿
A69: 铅钡 | B69: 无风化 | C69: 37 | D69: 60.12 | E69: 0 | F69: 0.23 | G69: 0.89 | H69: 0 | I69: 2.72 | J69: 0 | K69: 3.01 | L69: 17.24 | M69: 10.34 | N69: 1.46 | O69: 0.31 | P69: 0 | Q69: 3.66 | R69: 99.98 | S69: 37 | T69: C | U69: 深绿
A70: 铅钡 | B70: 无风化 | C70: 45 | D70: 61.28 | E70: 2.66 | F70: 0.11 | G70: 0.84 | H70: 0.74 | I70: 5 | J70: 0 | K70: 0.53 | L70: 15.99 | M70: 10.96 | N70: 0 | O70: 0.23 | P70: 0 | Q70: 0 | R70: 98.34 | S70: 45 | T70: A | U70: 浅蓝
A71: 铅钡 | B71: 无风化 | C71: 46 | D71: 55.21 | E71: 0 | F71: 0.25 | G71: 0 | H71: 1.67 | I71: 4.79 | J71: 0 | K71: 0.77 | L71: 25.25 | M71: 10.06 | N71: 0.2 | O71: 0.43 | P71: 0 | Q71: 0 | R71: 98.63 | S71: 46 | T71: A | U71: 浅蓝
A72: 铅钡 | B72: 无风化 | C72: 47 | D72: 51.54 | E72: 4.66 | F72: 0.29 | G72: 0.87 | H72: 0.61 | I72: 3.06 | J72: 0 | K72: 0.65 | L72: 25.4 | M72: 9.23 | N72: 0.1 | O72: 0.85 | P72: 0 | Q72: 0 | R72: 97.26 | S72: 47 | T72: A | U72: 浅蓝
A73: 铅钡 | B73: 无风化 | C73: 55 | D73: 49.01 | E73: 2.71 | F73: 0 | G73: 1.13 | H73: 0 | I73: 1.45 | J73: 0 | K73: 0.86 | L73: 32.92 | M73: 7.95 | N73: 0.35 | O73: 0 | P73: 0 | Q73: 0 | R73: 96.38 | S73: 55 | T73: C | U73: 绿

Sheet 问题一
A1: 类型 | B1: 表面风化 | C1: 文物采样点 | D1: 二氧化硅(SiO2) | E1: 氧化钠(Na2O) | F1: 氧化钾(K2O) | G1: 氧化钙(CaO) | H1: 氧化镁(MgO) | I1: 氧化铝(Al2O3) | J1: 氧化铁(Fe2O3) | K1: 氧化铜(CuO) | L1: 氧化铅(PbO) | M1: 氧化钡(BaO) | N1: 五氧化二磷(P2O5) | O1: 氧化锶(SrO) | P1: 氧化锡(SnO2) | Q1: 二氧化硫(SO2)
A2: 高钾 | B2: 风化 | C2: 07 | D2: 92.63 | E2: 0 | F2: 0 | G2: 1.07 | H2: 0 | I2: 1.98 | J2: 0.17 | K2: 3.24 | L2: 0 | M2: 0 | N2: 0.61 | O2: 0 | P2: 0 | Q2: 0
A3: 高钾 | B3: 风化 | C3: 09 | D3: 95.02 | E3: 0 | F3: 0.59 | G3: 0.62 | H3: 0 | I3: 1.32 | J3: 0.32 | K3: 1.55 | L3: 0 | M3: 0 | N3: 0.35 | O3: 0 | P3: 0 | Q3: 0
A4: 高钾 | B4: 风化 | C4: 10 | D4: 96.77 | E4: 0 | F4: 0.92 | G4: 0.21 | H4: 0 | I4: 0.81 | J4: 0.26 | K4: 0.84 | L4: 0 | M4: 0 | N4: 0 | O4: 0 | P4: 0 | Q4: 0
A5: 高钾 | B5: 风化 | C5: 12 | D5: 94.29 | E5: 0 | F5: 1.01 | G5: 0.72 | H5: 0 | I5: 1.46 | J5: 0.29 | K5: 1.65 | L5: 0 | M5: 0 | N5: 0.15 | O5: 0 | P5: 0 | Q5: 0
A6: 高钾 | B6: 风化 | C6: 22 | D6: 92.35 | E6: 0 | F6: 0.74 | G6: 1.66 | H6: 0.64 | I6: 3.5 | J6: 0.35 | K6: 0.55 | L6: 0 | M6: 0 | N6: 0.21 | O6: 0 | P6: 0 | Q6: 0
A7: 高钾 | B7: 风化 | C7: 27 | D7: 92.72 | E7: 0 | F7: 0 | G7: 0.94 | H7: 0.54 | I7: 2.51 | J7: 0.2 | K7: 1.54 | L7: 0 | M7: 0 | N7: 0.36 | O7: 0 | P7: 0 | Q7: 0
C8: 风化成分含量 | D8: =C46-D46 -> 25.97916667 | E8: =C47-D47 -> -0.695 | F8: =C48-D48 -> -8.7875 | G8: =C49-D49 -> -4.4625 | H8: =C50-D50 -> -0.8825 | I8: =C51-D51 -> -4.69 | J8: =C52-D52 -> -1.666666667 | K8: =C53-D53 -> -0.8908333333 | L8: =C54-D54 -> -0.4116666667 | M8: =C55-D55 -> -0.5983333333 | N8: =C56-D56 -> -1.1225 | O8: =C57-D57 -> -0.04166666667 | P8: =C58-D58 -> -0.1966666667 | Q8: =C59-D59 -> -0.1016666667
A12: 类型 | B12: 表面风化 | C12: 文物采样点 | D12: 二氧化硅(SiO2) | E12: 氧化钠(Na2O) | F12: 氧化钾(K2O) | G12: 氧化钙(CaO) | H12: 氧化镁(MgO) | I12: 氧化铝(Al2O3) | J12: 氧化铁(Fe2O3) | K12: 氧化铜(CuO) | L12: 氧化铅(PbO) | M12: 氧化钡(BaO) | N12: 五氧化二磷(P2O5) | O12: 氧化锶(SrO) | P12: 氧化锡(SnO2) | Q12: 二氧化硫(SO2)
A13: 铅钡 | B13: 风化 | C13: 02 | D13: 36.28 | E13: 0 | F13: 1.05 | G13: 2.34 | H13: 1.18 | I13: 5.73 | J13: 1.86 | K13: 0.26 | L13: 47.43 | M13: 0 | N13: 3.57 | O13: 0.19 | P13: 0 | Q13: 0
A14: 铅钡 | B14: 风化 | C14: 08 | D14: 20.14 | E14: 0 | F14: 0 | G14: 1.48 | H14: 0 | I14: 1.34 | J14: 0 | K14: 10.41 | L14: 28.68 | M14: 31.23 | N14: 3.59 | O14: 0.37 | P14: 0 | Q14: 2.58
A15: 铅钡 | B15: 风化 | C15: 08严重风化点 | D15: 4.61 | E15: 0 | F15: 0 | G15: 3.19 | H15: 0 | I15: 1.11 | J15: 0 | K15: 3.14 | L15: 32.45 | M15: 30.62 | N15: 7.56 | O15: 0.53 | P15: 0 | Q15: 15.03
A16: 铅钡 | B16: 风化 | C16: 11 | D16: 33.59 | E16: 0 | F16: 0.21 | G16: 3.51 | H16: 0.71 | I16: 2.69 | J16: 0 | K16: 4.93 | L16: 25.39 | M16: 14.61 | N16: 9.38 | O16: 0.37 | P16: 0 | Q16: 0
A17: 铅钡 | B17: 风化 | C17: 19 | D17: 29.64 | E17: 0 | F17: 0 | G17: 2.93 | H17: 0.59 | I17: 3.57 | J17: 1.33 | K17: 3.51 | L17: 42.82 | M17: 5.35 | N17: 8.83 | O17: 0.19 | P17: 0 | Q17: 0
A18: 铅钡 | B18: 风化 | C18: 26 | D18: 19.79 | E18: 0 | F18: 0 | G18: 1.44 | H18: 0 | I18: 0.7 | J18: 0 | K18: 10.57 | L18: 29.53 | M18: 32.25 | N18: 3.13 | O18: 0.45 | P18: 0 | Q18: 1.96
A19: 铅钡 | B19: 风化 | C19: 26严重风化点 | D19: 3.72 | E19: 0 | F19: 0.4 | G19: 3.01 | H19: 0 | I19: 1.18 | J19: 0 | K19: 3.6 | L19: 29.92 | M19: 35.45 | N19: 6.04 | O19: 0.62 | P19: 0 | Q19: 15.95
A20: 铅钡 | B20: 风化 | C20: 34 | D20: 35.78 | E20: 0 | F20: 0.25 | G20: 0.78 | H20: 0 | I20: 1.62 | J20: 0.47 | K20: 1.51 | L20: 46.55 | M20: 10 | N20: 0.34 | O20: 0.22 | P20: 0 | Q20: 0
A21: 铅钡 | B21: 风化 | C21: 36 | D21: 39.57 | E21: 2.22 | F21: 0.14 | G21: 0.37 | H21: 0 | I21: 1.6 | J21: 0.32 | K21: 0.68 | L21: 41.61 | M21: 10.83 | N21: 0.07 | O21: 0.22 | P21: 0 | Q21: 0
A22: 铅钡 | B22: 风化 | C22: 38 | D22: 32.93 | E22: 1.38 | F22: 0 | G22: 0.68 | H22: 0 | I22: 2.57 | J22: 0.29 | K22: 0.73 | L22: 49.31 | M22: 9.79 | N22: 0.48 | O22: 0.41 | P22: 0 | Q22: 0
A23: 铅钡 | B23: 风化 | C23: 39 | D23: 26.25 | E23: 0 | F23: 0 | G23: 1.11 | H23: 0 | I23: 0.5 | J23: 0 | K23: 0.88 | L23: 61.03 | M23: 7.22 | N23: 1.16 | O23: 0.61 | P23: 0 | Q23: 0
A24: 铅钡 | B24: 风化 | C24: 40 | D24: 16.71 | E24: 0 | F24: 0 | G24: 1.87 | H24: 0 | I24: 0.45 | J24: 0.19 | K24: 0 | L24: 70.21 | M24: 6.69 | N24: 1.77 | O24: 0.68 | P24: 0 | Q24: 0
A25: 铅钡 | B25: 风化 | C25: 41 | D25: 18.46 | E25: 0 | F25: 0.44 | G25: 4.96 | H25: 2.73 | I25: 3.33 | J25: 1.79 | K25: 0.19 | L25: 44.12 | M25: 9.76 | N25: 7.46 | O25: 0.47 | P25: 0 | Q25: 0
A26: 铅钡 | B26: 风化 | C26: 43部位1 | D26: 12.41 | E26: 0 | F26: 0 | G26: 5.24 | H26: 0.89 | I26: 2.25 | J26: 0.76 | K26: 5.35 | L26: 59.85 | M26: 7.29 | N26: 0 | O26: 0.64 | P26: 0 | Q26: 0
A27: 铅钡 | B27: 风化 | C27: 43部位2 | D27: 21.7 | E27: 0 | F27: 0 | G27: 6.4 | H27: 0.95 | I27: 3.41 | J27: 1.39 | K27: 1.51 | L27: 44.75 | M27: 3.26 | N27: 12.83 | O27: 0.47 | P27: 0 | Q27: 0
A28: 铅钡 | B28: 风化 | C28: 48 | D28: 53.33 | E28: 0.8 | F28: 0.32 | G28: 2.82 | H28: 1.54 | I28: 13.65 | J28: 1.03 | K28: 0 | L28: 15.71 | M28: 7.31 | N28: 1.1 | O28: 0.25 | P28: 1.31 | Q28: 0
A29: 铅钡 | B29: 风化 | C29: 49 | D29: 28.79 | E29: 0 | F29: 0 | G29: 4.58 | H29: 1.47 | I29: 5.38 | J29: 2.74 | K29: 0.7 | L29: 34.18 | M29: 6.1 | N29: 11.1 | O29: 0.46 | P29: 0 | Q29: 0
A30: 铅钡 | B30: 风化 | C30: 50 | D30: 17.98 | E30: 0 | F30: 0 | G30: 3.19 | H30: 0.47 | I30: 1.87 | J30: 0.33 | K30: 1.13 | L30: 44 | M30: 14.2 | N30: 6.34 | O30: 0.66 | P30: 0 | Q30: 0
A31: 铅钡 | B31: 风化 | C31: 51部位1 | D31: 24.61 | E31: 0 | F31: 0 | G31: 3.58 | H31: 1.19 | I31: 5.25 | J31: 1.19 | K31: 1.37 | L31: 40.24 | M31: 8.94 | N31: 8.1 | O31: 0.39 | P31: 0.47 | Q31: 0
A32: 铅钡 | B32: 风化 | C32: 51部位2 | D32: 21.35 | E32: 0 | F32: 0 | G32: 5.13 | H32: 1.45 | I32: 2.51 | J32: 0.42 | K32: 0.75 | L32: 51.34 | M32: 0 | N32: 8.75 | O32: 0 | P32: 0 | Q32: 0
A33: 铅钡 | B33: 风化 | C33: 52 | D33: 25.74 | E33: 1.22 | F33: 0 | G33: 2.27 | H33: 0.55 | I33: 1.16 | J33: 0.23 | K33: 0.7 | L33: 47.42 | M33: 8.64 | N33: 5.71 | O33: 0.44 | P33: 0 | Q33: 0
A34: 铅钡 | B34: 风化 | C34: 54 | D34: 22.28 | E34: 0 | F34: 0.32 | G34: 3.19 | H34: 1.28 | I34: 4.15 | J34: 0 | K34: 0.83 | L34: 55.46 | M34: 7.04 | N34: 4.24 | O34: 0.88 | P34: 0 | Q34: 0
A35: 铅钡 | B35: 风化 | C35: 54严重风化点 | D35: 17.11 | E35: 0 | F35: 0 | G35: 0 | H35: 1.11 | I35: 3.65 | J35: 0 | K35: 1.34 | L35: 58.46 | M35: 0 | N35: 14.13 | O35: 1.12 | P35: 0 | Q35: 0
A36: 铅钡 | B36: 风化 | C36: 56 | D36: 29.15 | E36: 0 | F36: 0 | G36: 1.21 | H36: 0 | I36: 1.85 | J36: 0 | K36: 0.79 | L36: 41.25 | M36: 15.45 | N36: 2.54 | O36: 0 | P36: 0 | Q36: 0
A37: 铅钡 | B37: 风化 | C37: 57 | D37: 25.42 | E37: 0 | F37: 0 | G37: 1.31 | H37: 0 | I37: 2.18 | J37: 0 | K37: 1.16 | L37: 45.1 | M37: 17.3 | N37: 0 | O37: 0 | P37: 0 | Q37: 0
A38: 铅钡 | B38: 风化 | C38: 58 | D38: 30.39 | E38: 0 | F38: 0.34 | G38: 3.49 | H38: 0.79 | I38: 3.52 | J38: 0.86 | K38: 3.13 | L38: 39.35 | M38: 7.66 | N38: 8.99 | O38: 0.24 | P38: 0 | Q38: 0
C39: 风化成分含量 | D39: =N46-O46 -> -19.82912393 | E39: =N47-O47 -> 0.1809615385 | F39: =N48-O48 -> -0.1156837607 | G39: =N49-O49 -> 1.114017094 | H39: =N50-O50 -> 0.208525641 | I39: =N51-O51 -> 0.6437179487 | J39: =N52-O52 -> -0.3772435897 | K39: =N53-O53 -> 0.4391880342 | L39: =N54-O54 -> 13.27809829 | M39: =N55-O55 -> -0.01200854701 | N39: =N56-O56 -> 3.251431624 | O39: =N57-O57 -> 0.06946581197 | P39: =N58-O58 -> -0.008782051282 | Q39: =N59-O59 -> 0.7051282051
B45: 高钾均值 | C45: 已风化 | D45: 未风化 | E45: 差值 | M45: 铅钡均值 | N45: 已风化 | O45: 未风化 | P45: 差值
B46: 二氧化硅 | C46: 93.96333333 | D46: 67.98416667 | E46: =C46-D46 -> 25.97916667 | M46: 二氧化硅 | N46: 33.61472222 | O46: 53.44384615 | P46: =N46-O46 -> -19.82912393
B47: 氧化钠 | C47: 0 | D47: 0.695 | E47: =C47-D47 -> -0.695 | M47: 氧化钠 | N47: 0.9525 | O47: 0.7715384615 | P47: =N47-O47 -> 0.1809615385
B48: 氧化钾 | C48: 0.5433333333 | D48: 9.330833333 | E48: -8.7875 | M48: 氧化钾 | N48: 0.1427777778 | O48: 0.2584615385 | P48: -0.1156837607
B49: 氧化钙 | C49: 0.87 | D49: 5.3325 | E49: -4.4625 | M49: 氧化钙 | N49: 2.345555556 | O49: 1.231538462 | P49: 1.114017094
B50: 氧化镁 | C50: 0.1966666667 | D50: 1.079166667 | E50: -0.8825 | M50: 氧化镁 | N50: 0.7008333333 | O50: 0.4923076923 | P50: 0.208525641
B51: 氧化铝 | C51: 1.93 | D51: 6.62 | E51: -4.69 | M51: 氧化铝 | N51: 3.838333333 | O51: 3.194615385 | P51: 0.6437179487
B52: 氧化铁 | C52: 0.265 | D52: 1.931666667 | E52: -1.666666667 | M52: 氧化铁 | N52: 0.5558333333 | O52: 0.9330769231 | P52: -0.3772435897
B53: 氧化铜 | C53: 1.561666667 | D53: 2.4525 | E53: -0.8908333333 | M53: 氧化铜 | N53: 1.996111111 | O53: 1.556923077 | P53: 0.4391880342
B54: 氧化铅 | C54: 0 | D54: 0.4116666667 | E54: -0.4116666667 | M54: 氧化铅 | N54: 36.87194444 | O54: 23.59384615 | P54: 13.27809829
B55: 氧化钡 | C55: 0 | D55: 0.5983333333 | E55: -0.5983333333 | M55: 氧化钡 | N55: 10.48722222 | O55: 10.49923077 | P55: -0.01200854701
B56: 五氧化二磷 | C56: 0.28 | D56: 1.4025 | E56: -1.1225 | M56: 五氧化二磷 | N56: 4.155277778 | O56: 0.9038461538 | P56: 3.251431624
B57: 氧化锶 | C57: 0 | D57: 0.04166666667 | E57: -0.04166666667 | M57: 氧化锶 | N57: 0.3663888889 | O57: 0.2969230769 | P57: 0.06946581197
B58: 氧化锡 | C58: 0 | D58: 0.1966666667 | E58: -0.1966666667 | M58: 氧化锡 | N58: 0.05583333333 | O58: 0.06461538462 | P58: -0.008782051282
B59: 二氧化硫 | C59: 0 | D59: 0.1016666667 | E59: -0.1016666667 | M59: 二氧化硫 | N59: 0.9866666667 | O59: 0.2815384615 | P59: 0.7051282051
A67: 类型 | B67: 表面风化 | C67: 文物采样点 | D67: 二氧化硅(SiO2) | E67: 氧化钠(Na2O) | F67: 氧化钾(K2O) | G67: 氧化钙(CaO) | H67: 氧化镁(MgO) | I67: 氧化铝(Al2O3) | J67: 氧化铁(Fe2O3) | K67: 氧化铜(CuO) | L67: 氧化铅(PbO) | M67: 氧化钡(BaO) | N67: 五氧化二磷(P2O5) | O67: 氧化锶(SrO) | P67: 氧化锡(SnO2) | Q67: 二氧化硫(SO2)
A68: 高钾 | B68: 风化 | C68: 07 | D68: =D2-D8 -> 66.65083333 | E68: =E2-E8 -> 0.695 | F68: 8.7875 | G68: 5.5325 | H68: 0.8825 | I68: 6.67 | J68: 1.836666667 | K68: 4.130833333 | L68: 0.4116666667 | M68: 0.5983333333 | N68: 1.7325 | O68: 0.04166666667 | P68: 0.1966666667 | Q68: 0.1016666667
A69: 高钾 | B69: 风化 | C69: 09 | D69: =D3-D8 -> 69.04083333 | E69: =E3-E8 -> 0.695 | F69: 9.3775 | G69: 5.0825 | H69: 0.8825 | I69: 6.01 | J69: 1.986666667 | K69: 2.440833333 | L69: 0.4116666667 | M69: 0.5983333333 | N69: 1.4725 | O69: 0.04166666667 | P69: 0.1966666667 | Q69: 0.1016666667
A70: 高钾 | B70: 风化 | C70: 10 | D70: =D4-D8 -> 70.79083333 | E70: =E4-E8 -> 0.695 | F70: 9.7075 | G70: 4.6725 | H70: 0.8825 | I70: 5.5 | J70: 1.926666667 | K70: 1.730833333 | L70: 0.4116666667 | M70: 0.5983333333 | N70: 1.1225 | O70: 0.04166666667 | P70: 0.1966666667 | Q70: 0.1016666667
A71: 高钾 | B71: 风化 | C71: 12 | D71: =D5-D8 -> 68.31083333 | E71: =E5-E8 -> 0.695 | F71: 9.7975 | G71: 5.1825 | H71: 0.8825 | I71: 6.15 | J71: 1.956666667 | K71: 2.540833333 | L71: 0.4116666667 | M71: 0.5983333333 | N71: 1.2725 | O71: 0.04166666667 | P71: 0.1966666667 | Q71: 0.1016666667
A72: 高钾 | B72: 风化 | C72: 22 | D72: =D6-D8 -> 66.37083333 | E72: =E6-E8 -> 0.695 | F72: 9.5275 | G72: 6.1225 | H72: 1.5225 | I72: 8.19 | J72: 2.016666667 | K72: 1.440833333 | L72: 0.4116666667 | M72: 0.5983333333 | N72: 1.3325 | O72: 0.04166666667 | P72: 0.1966666667 | Q72: 0.1016666667
A73: 高钾 | B73: 风化 | C73: 27 | D73: =D7-D8 -> 66.74083333 | E73: =E7-E8 -> 0.695 | F73: 8.7875 | G73: 5.4025 | H73: 1.4225 | I73: 7.2 | J73: 1.866666667 | K73: 2.430833333 | L73: 0.4116666667 | M73: 0.5983333333 | N73: 1.4825 | O73: 0.04166666667 | P73: 0.1966666667 | Q73: 0.1016666667
A77: 类型 | B77: 表面风化 | C77: 文物采样点 | D77: 二氧化硅(SiO2) | E77: 氧化钠(Na2O) | F77: 氧化钾(K2O) | G77: 氧化钙(CaO) | H77: 氧化镁(MgO) | I77: 氧化铝(Al2O3) | J77: 氧化铁(Fe2O3) | K77: 氧化铜(CuO) | L77: 氧化铅(PbO) | M77: 氧化钡(BaO) | N77: 五氧化二磷(P2O5) | O77: 氧化锶(SrO) | P77: 氧化锡(SnO2) | Q77: 二氧化硫(SO2)
A78: 铅钡 | B78: 风化 | C78: 02 | D78: =D13-D39 -> 56.10912393 | E78: =E13-E39 -> -0.1809615385 | F78: 1.165683761 | G78: 1.225982906 | H78: 0.971474359 | I78: 5.086282051 | J78: 2.23724359 | K78: -0.1791880342 | L78: 34.15190171 | M78: 0.01200854701 | N78: 0.3185683761 | O78: 0.120534188 | P78: 0.008782051282 | Q78: -0.7051282051
A79: 铅钡 | B79: 风化 | C79: 08 | D79: =D14-D39 -> 39.96912393 | E79: =E14-E39 -> -0.1809615385 | F79: 0.1156837607 | G79: 0.365982906 | H79: -0.208525641 | I79: 0.6962820513 | J79: 0.3772435897 | K79: 9.970811966 | L79: 15.40190171 | M79: 31.24200855 | N79: 0.3385683761 | O79: 0.300534188 | P79: =P14-P39 -> 0.008782051282 | Q79: =Q14-Q39 -> 1.874871795
A80: 铅钡 | B80: 风化 | C80: 08严重风化点 | D80: =D15-D39 -> 24.43912393 | E80: =E15-E39 -> -0.1809615385 | F80: 0.1156837607 | G80: 2.075982906 | H80: -0.208525641 | I80: 0.4662820513 | J80: 0.3772435897 | K80: 2.700811966 | L80: 19.17190171 | M80: 30.63200855 | N80: 4.308568376 | O80: 0.460534188 | P80: =P15-P39 -> 0.008782051282 | Q80: =Q15-Q39 -> 14.32487179
A81: 铅钡 | B81: 风化 | C81: 11 | D81: =D16-D39 -> 53.41912393 | E81: =E16-E39 -> -0.1809615385 | F81: 0.3256837607 | G81: 2.395982906 | H81: 0.501474359 | I81: 2.046282051 | J81: 0.3772435897 | K81: 4.490811966 | L81: 12.11190171 | M81: 14.62200855 | N81: 6.128568376 | O81: 0.300534188 | P81: =P16-P39 -> 0.008782051282 | Q81: =Q16-Q39 -> -0.7051282051
A82: 铅钡 | B82: 风化 | C82: 19 | D82: =D17-D39 -> 49.46912393 | E82: =E17-E39 -> -0.1809615385 | F82: 0.1156837607 | G82: 1.815982906 | H82: 0.381474359 | I82: 2.926282051 | J82: 1.70724359 | K82: 3.070811966 | L82: 29.54190171 | M82: 5.362008547 | N82: 5.578568376 | O82: 0.120534188 | P82: =P17-P39 -> 0.008782051282 | Q82: =Q17-Q39 -> -0.7051282051
A83: 铅钡 | B83: 风化 | C83: 26 | D83: =D18-D39 -> 39.61912393 | E83: =E18-E39 -> -0.1809615385 | F83: 0.1156837607 | G83: 0.325982906 | H83: -0.208525641 | I83: 0.05628205128 | J83: 0.3772435897 | K83: 10.13081197 | L83: 16.25190171 | M83: 32.26200855 | N83: -0.1214316239 | O83: 0.380534188 | P83: =P18-P39 -> 0.008782051282 | Q83: =Q18-Q39 -> 1.254871795
A84: 铅钡 | B84: 风化 | C84: 26严重风化点 | D84: =D19-D39 -> 23.54912393 | E84: =E19-E39 -> -0.1809615385 | F84: 0.5156837607 | G84: 1.895982906 | H84: -0.208525641 | I84: 0.5362820513 | J84: 0.3772435897 | K84: 3.160811966 | L84: 16.64190171 | M84: 35.46200855 | N84: 2.788568376 | O84: 0.550534188 | P84: =P19-P39 -> 0.008782051282 | Q84: =Q19-Q39 -> 15.24487179
A85: 铅钡 | B85: 风化 | C85: 34 | D85: =D20-D39 -> 55.60912393 | E85: =E20-E39 -> -0.1809615385 | F85: 0.3656837607 | G85: -0.334017094 | H85: -0.208525641 | I85: 0.9762820513 | J85: 0.8472435897 | K85: 1.070811966 | L85: 33.27190171 | M85: 10.01200855 | N85: -2.911431624 | O85: 0.150534188 | P85: =P20-P39 -> 0.008782051282 | Q85: =Q20-Q39 -> -0.7051282051
A86: 铅钡 | B86: 风化 | C86: 36 | D86: =D21-D39 -> 59.39912393 | E86: =E21-E39 -> 2.039038462 | F86: 0.2556837607 | G86: -0.744017094 | H86: -0.208525641 | I86: 0.9562820513 | J86: 0.6972435897 | K86: 0.2408119658 | L86: 28.33190171 | M86: 10.84200855 | N86: -3.181431624 | O86: 0.150534188 | P86: =P21-P39 -> 0.008782051282 | Q86: =Q21-Q39 -> -0.7051282051
A87: 铅钡 | B87: 风化 | C87: 38 | D87: =D22-D39 -> 52.75912393 | E87: =E22-E39 -> 1.199038462 | F87: 0.1156837607 | G87: -0.434017094 | H87: -0.208525641 | I87: 1.926282051 | J87: 0.6672435897 | K87: 0.2908119658 | L87: 36.03190171 | M87: 9.802008547 | N87: -2.771431624 | O87: 0.340534188 | P87: =P22-P39 -> 0.008782051282 | Q87: =Q22-Q39 -> -0.7051282051
A88: 铅钡 | B88: 风化 | C88: 39 | D88: =D23-D39 -> 46.07912393 | E88: =E23-E39 -> -0.1809615385 | F88: 0.1156837607 | G88: -0.004017094017 | H88: -0.208525641 | I88: -0.1437179487 | J88: 0.3772435897 | K88: 0.4408119658 | L88: 47.75190171 | M88: 7.232008547 | N88: -2.091431624 | O88: 0.540534188 | P88: =P23-P39 -> 0.008782051282 | Q88: =Q23-Q39 -> -0.7051282051
A89: 铅钡 | B89: 风化 | C89: 40 | D89: =D24-D39 -> 36.53912393 | E89: =E24-E39 -> -0.1809615385 | F89: 0.1156837607 | G89: 0.755982906 | H89: -0.208525641 | I89: -0.1937179487 | J89: 0.5672435897 | K89: -0.4391880342 | L89: 56.93190171 | M89: 6.702008547 | N89: -1.481431624 | O89: 0.610534188 | P89: =P24-P39 -> 0.008782051282 | Q89: =Q24-Q39 -> -0.7051282051
A90: 铅钡 | B90: 风化 | C90: 41 | D90: =D25-D39 -> 38.28912393 | E90: =E25-E39 -> -0.1809615385 | F90: 0.5556837607 | G90: 3.845982906 | H90: 2.521474359 | I90: 2.686282051 | J90: 2.16724359 | K90: -0.2491880342 | L90: 30.84190171 | M90: 9.772008547 | N90: 4.208568376 | O90: 0.400534188 | P90: =P25-P39 -> 0.008782051282 | Q90: =Q25-Q39 -> -0.7051282051
A91: 铅钡 | B91: 风化 | C91: 43部位1 | D91: =D26-D39 -> 32.23912393 | E91: =E26-E39 -> -0.1809615385 | F91: 0.1156837607 | G91: 4.125982906 | H91: 0.681474359 | I91: 1.606282051 | J91: 1.13724359 | K91: 4.910811966 | L91: 46.57190171 | M91: 7.302008547 | N91: -3.251431624 | O91: 0.570534188 | P91: =P26-P39 -> 0.008782051282 | Q91: =Q26-Q39 -> -0.7051282051
A92: 铅钡 | B92: 风化 | C92: 43部位2 | D92: =D27-D39 -> 41.52912393 | E92: =E27-E39 -> -0.1809615385 | F92: 0.1156837607 | G92: 5.285982906 | H92: 0.741474359 | I92: 2.766282051 | J92: 1.76724359 | K92: 1.070811966 | L92: 31.47190171 | M92: 3.272008547 | N92: 9.578568376 | O92: 0.400534188 | P92: =P27-P39 -> 0.008782051282 | Q92: =Q27-Q39 -> -0.7051282051
A93: 铅钡 | B93: 风化 | C93: 48 | D93: =D28-D39 -> 73.15912393 | E93: =E28-E39 -> 0.6190384615 | F93: 0.4356837607 | G93: 1.705982906 | H93: 1.331474359 | I93: 13.00628205 | J93: 1.40724359 | K93: -0.4391880342 | L93: 2.431901709 | M93: 7.322008547 | N93: -2.151431624 | O93: 0.180534188 | P93: =P28-P39 -> 1.318782051 | Q93: =Q28-Q39 -> -0.7051282051
A94: 铅钡 | B94: 风化 | C94: 49 | D94: =D29-D39 -> 48.61912393 | E94: =E29-E39 -> -0.1809615385 | F94: 0.1156837607 | G94: 3.465982906 | H94: 1.261474359 | I94: 4.736282051 | J94: 3.11724359 | K94: 0.2608119658 | L94: 20.90190171 | M94: 6.112008547 | N94: 7.848568376 | O94: 0.390534188 | P94: =P29-P39 -> 0.008782051282 | Q94: =Q29-Q39 -> -0.7051282051
A95: 铅钡 | B95: 风化 | C95: 50 | D95: =D30-D39 -> 37.80912393 | E95: =E30-E39 -> -0.1809615385 | F95: 0.1156837607 | G95: 2.075982906 | H95: 0.261474359 | I95: 1.226282051 | J95: 0.7072435897 | K95: 0.6908119658 | L95: 30.72190171 | M95: 14.21200855 | N95: 3.088568376 | O95: 0.590534188 | P95: =P30-P39 -> 0.008782051282 | Q95: =Q30-Q39 -> -0.7051282051
A96: 铅钡 | B96: 风化 | C96: 51部位1 | D96: =D31-D39 -> 44.43912393 | E96: =E31-E39 -> -0.1809615385 | F96: 0.1156837607 | G96: 2.465982906 | H96: 0.981474359 | I96: 4.606282051 | J96: 1.56724359 | K96: 0.9308119658 | L96: 26.96190171 | M96: 8.952008547 | N96: 4.848568376 | O96: 0.320534188 | P96: =P31-P39 -> 0.4787820513 | Q96: =Q31-Q39 -> -0.7051282051
A97: 铅钡 | B97: 风化 | C97: 51部位2 | D97: =D32-D39 -> 41.17912393 | E97: =E32-E39 -> -0.1809615385 | F97: 0.1156837607 | G97: 4.015982906 | H97: 1.241474359 | I97: 1.866282051 | J97: 0.7972435897 | K97: 0.3108119658 | L97: 38.06190171 | M97: 0.01200854701 | N97: 5.498568376 | O97: -0.06946581197 | P97: =P32-P39 -> 0.008782051282 | Q97: =Q32-Q39 -> -0.7051282051
A98: 铅钡 | B98: 风化 | C98: 52 | D98: =D33-D39 -> 45.56912393 | E98: =E33-E39 -> 1.039038462 | F98: 0.1156837607 | G98: 1.155982906 | H98: 0.341474359 | I98: 0.5162820513 | J98: 0.6072435897 | K98: 0.2608119658 | L98: 34.14190171 | M98: 8.652008547 | N98: 2.458568376 | O98: 0.370534188 | P98: =P33-P39 -> 0.008782051282 | Q98: =Q33-Q39 -> -0.7051282051
A99: 铅钡 | B99: 风化 | C99: 54 | D99: =D34-D39 -> 42.10912393 | E99: =E34-E39 -> -0.1809615385 | F99: 0.4356837607 | G99: 2.075982906 | H99: 1.071474359 | I99: 3.506282051 | J99: 0.3772435897 | K99: 0.3908119658 | L99: 42.18190171 | M99: 7.052008547 | N99: 0.9885683761 | O99: 0.810534188 | P99: =P34-P39 -> 0.008782051282 | Q99: =Q34-Q39 -> -0.7051282051
A100: 铅钡 | B100: 风化 | C100: 54严重风化点 | D100: =D35-D39 -> 36.93912393 | E100: =E35-E39 -> -0.1809615385 | F100: 0.1156837607 | G100: -1.114017094 | H100: 0.901474359 | I100: 3.006282051 | J100: 0.3772435897 | K100: 0.9008119658 | L100: 45.18190171 | M100: 0.01200854701 | N100: 10.87856838 | O100: 1.050534188 | P100: =P35-P39 -> 0.008782051282 | Q100: =Q35-Q39 -> -0.7051282051
A101: 铅钡 | B101: 风化 | C101: 56 | D101: =D36-D39 -> 48.97912393 | E101: =E36-E39 -> -0.1809615385 | F101: 0.1156837607 | G101: 0.09598290598 | H101: -0.208525641 | I101: 1.206282051 | J101: 0.3772435897 | K101: 0.3508119658 | L101: 27.97190171 | M101: 15.46200855 | N101: -0.7114316239 | O101: -0.06946581197 | P101: =P36-P39 -> 0.008782051282 | Q101: =Q36-Q39 -> -0.7051282051
A102: 铅钡 | B102: 风化 | C102: 57 | D102: =D37-D39 -> 45.24912393 | E102: =E37-E39 -> -0.1809615385 | F102: 0.1156837607 | G102: 0.195982906 | H102: -0.208525641 | I102: 1.536282051 | J102: 0.3772435897 | K102: 0.7208119658 | L102: 31.82190171 | M102: 17.31200855 | N102: -3.251431624 | O102: -0.06946581197 | P102: =P37-P39 -> 0.008782051282 | Q102: =Q37-Q39 -> -0.7051282051
A103: 铅钡 | B103: 风化 | C103: 58 | D103: =D38-D39 -> 50.21912393 | E103: =E38-E39 -> -0.1809615385 | F103: 0.4556837607 | G103: 2.375982906 | H103: 0.581474359 | I103: 2.876282051 | J103: 1.23724359 | K103: 2.690811966 | L103: 26.07190171 | M103: 7.672008547 | N103: 5.738568376 | O103: 0.170534188 | P103: =P38-P39 -> 0.008782051282 | Q103: =Q38-Q39 -> -0.7051282051

Sheet 高钾玻璃
B1: 二氧化硅 | C1: 氧化钠 | D1: 氧化钾 | E1: 氧化钙 | F1: 氧化镁 | G1: 氧化铝 | H1: 氧化铁 | I1: 氧化铜 | J1: 氧化铅 | K1: 氧化钡 | L1: 五氧化二磷 | M1: 氧化锶 | N1: 氧化锡 | O1: 二氧化硫
A2: 二氧化硅 | B2: 1 | C2: -0.475 | D2: -0.781 | E2: -0.752 | F2: -0.546 | G2: -0.831 | H2: -0.783 | L2: -0.53 | M2: -0.524
A3: 氧化钠 | B3: -0.475 | C3: 1 | D3: 0.606 | E3: 0.64
A4: 氧化钾 | B4: -0.781 | C4: 0.606 | D4: 1 | E4: 0.69 | G4: 0.506
A5: 氧化钙 | B5: -0.752 | C5: 0.64 | D5: 0.69 | E5: 1 | G5: 0.521
A6: 氧化镁 | B6: -0.546 | F6: 1 | G6: 0.735 | H6: 0.569 | K6: 0.521 | L6: 0.643 | M6: 0.666
A7: 氧化铝 | B7: -0.831 | D7: 0.506 | E7: 0.521 | F7: 0.735 | G7: 1 | H7: 0.748 | J7: 0.602 | K7: 0.473 | L7: 0.518 | M7: 0.511
A8: 氧化铁 | B8: -0.783 | E8: 0.537 | F8: 0.569 | G8: 0.748 | H8: 1 | I8: 0.643 | K8: 0.539 | L8: 0.517
A9: 氧化铜 | H9: 0.643 | I9: 1 | K9: 0.483
A10: 氧化铅 | G10: 0.602 | J10: 1 | K10: 0.682
A11: 氧化钡 | F11: 0.521 | G11: 0.473 | H11: 0.539 | I11: 0.483 | J11: 0.682 | K11: 1 | L11: 0.471 | M11: 0.565
A12: 五氧化二磷 | B12: -0.53 | F12: 0.643 | G12: 0.518 | H12: 0.517 | K12: 0.471 | L12: 1 | M12: 0.5
A13: 氧化锶 | B13: -0.524 | F13: 0.666 | G13: 0.511 | K13: 0.565 | L13: 0.5 | M13: 1
A14: 氧化锡 | N14: 1
A15: 二氧化硫 | O15: 1
A22: 已风化高钾玻璃描述统计
B23: N | C23: 最小值 | D23: 最大值 | E23: 平均值 | F23: 标准差 | G23: 方差 | H23: 偏度 | J23: 峰度
B24: 统计 | C24: 统计 | D24: 统计 | E24: 统计 | F24: 统计 | G24: 统计 | H24: 统计 | I24: 标准误差 | J24: 统计 | K24: 标准误差 | O24: 已风化 | P24: 未风化
A25: 二氧化硅 | B25: 6 | C25: 92.35 | D25: 96.77 | E25: 93.96333333 | F25: 1.733616644 | G25: 3.005426667 | H25: 0.854018054 | I25: 0.8451542547 | J25: -0.3884118384 | K25: 1.74077656 | N25: 二氧化硅 | O25: 93.96333333 | P25: 67.98416667 | R25: =O25-P25 -> 25.97916667
A26: 氧化钠 | B26: 6 | C26: 0 | D26: 0 | E26: 0 | F26: 0 | G26: 0 | N26: 氧化钠 | O26: 0 | P26: 0.695 | R26: =O26-P26 -> -0.695
A27: 氧化钾 | B27: 6 | C27: 0 | D27: 1.01 | E27: 0.5433333333 | F27: 0.4451816109 | G27: 0.1981866667 | H27: -0.5372976537 | I27: 0.8451542547 | J27: -1.912975195 | K27: 1.74077656 | N27: 氧化钾 | O27: 0.5433333333 | P27: 9.330833333 | R27: -8.7875
A28: 氧化钙 | B28: 6 | C28: 0.21 | D28: 1.66 | E28: 0.87 | F28: 0.4877704378 | G28: 0.23792 | H28: 0.5037968756 | I28: 0.8451542547 | J28: 0.987745269 | K28: 1.74077656 | N28: 氧化钙 | O28: 0.87 | P28: 5.3325 | R28: -4.4625
A29: 氧化镁 | B29: 6 | C29: 0 | D29: 0.64 | E29: 0.1966666667 | F29: 0.3063113884 | G29: 0.09382666667 | H29: 1.01439414 | I29: 0.8451542547 | J29: -1.597713614 | K29: 1.74077656 | N29: 氧化镁 | O29: 0.1966666667 | P29: 1.079166667 | R29: -0.8825
A30: 氧化铝 | B30: 6 | C30: 0.81 | D30: 3.5 | E30: 1.93 | F30: 0.9644895023 | G30: 0.93024 | H30: 0.7788833818 | I30: 0.8451542547 | J30: 0.1806895939 | K30: 1.74077656 | N30: 氧化铝 | O30: 1.93 | P30: 6.62 | R30: -4.69
A31: 氧化铁 | B31: 6 | C31: 0.17 | D31: 0.35 | E31: 0.265 | F31: 0.06949820142 | G31: 0.00483 | H31: -0.3002892851 | I31: 0.8451542547 | J31: -1.417769376 | K31: 1.74077656 | N31: 氧化铁 | O31: 0.265 | P31: 1.931666667 | R31: -1.666666667
A32: 氧化铜 | B32: 6 | C32: 0.55 | D32: 3.24 | E32: 1.561666667 | F32: 0.9348244042 | G32: 0.8738966667 | H32: 1.218065893 | I32: 0.8451542547 | J32: 2.231411711 | K32: 1.74077656 | N32: 氧化铜 | O32: 1.561666667 | P32: 2.4525 | R32: -0.8908333333
A33: 氧化铅 | B33: 6 | C33: 0 | D33: 0 | E33: 0 | F33: 0 | G33: 0 | N33: 氧化铅 | O33: 0 | P33: 0.4116666667 | R33: -0.4116666667
A34: 氧化钡 | B34: 6 | C34: 0 | D34: 0 | E34: 0 | F34: 0 | G34: 0 | N34: 氧化钡 | O34: 0 | P34: 0.5983333333 | R34: -0.5983333333
A35: 五氧化二磷 | B35: 6 | C35: 0 | D35: 0.61 | E35: 0.28 | F35: 0.2099523756 | G35: 0.04408 | H35: 0.3987162971 | I35: 0.8451542547 | J35: 0.3716905577 | K35: 1.74077656 | N35: 五氧化二磷 | O35: 0.28 | P35: 1.4025 | R35: -1.1225
A36: 氧化锶 | B36: 6 | C36: 0 | D36: 0 | E36: 0 | F36: 0 | G36: 0 | N36: 氧化锶 | O36: 0 | P36: 0.04166666667 | R36: -0.04166666667
A37: 氧化锡 | B37: 6 | C37: 0 | D37: 0 | E37: 0 | F37: 0 | G37: 0 | N37: 氧化锡 | O37: 0 | P37: 0.1966666667 | R37: -0.1966666667
A38: 二氧化硫 | B38: 6 | C38: 0 | D38: 0 | E38: 0 | F38: 0 | G38: 0 | N38: 二氧化硫 | O38: 0 | P38: 0.1016666667 | R38: -0.1016666667
A39: 有效个案数（成列） | B39: 6
A44: 未风化高钾玻璃描述统计
B45: N | C45: 最小值 | D45: 最大值 | E45: 平均值 | F45: 标准差 | G45: 方差 | H45: 偏度 | J45: 峰度
B46: 统计 | C46: 统计 | D46: 统计 | E46: 统计 | F46: 统计 | G46: 统计 | H46: 统计 | I46: 标准误差 | J46: 统计 | K46: 标准误差
A47: 二氧化硅 | B47: 12 | C47: 59.01 | D47: 87.05 | E47: 67.98416667 | F47: 8.755098731 | G47: 76.65175379 | H47: 1.158092024 | I47: 0.6373020055 | J47: 0.5363730586 | K47: 1.232246474
A48: 氧化钠 | B48: 12 | C48: 0 | D48: 3.38 | E48: 0.695 | F48: 1.286916682 | G48: 1.656154545 | H48: 1.497490301 | I48: 0.6373020055 | J48: 0.5591716158 | K48: 1.232246474
A49: 氧化钾 | B49: 12 | C49: 0 | D49: 14.52 | E49: 9.330833333 | F49: 3.920302535 | G49: 15.36877197 | H49: -1.20344678 | I49: 0.6373020055 | J49: 1.900331883 | K49: 1.232246474
A50: 氧化钙 | B50: 12 | C50: 0 | D50: 8.7 | E50: 5.3325 | F50: 3.092478044 | G50: 9.563420455 | H50: -0.8752475541 | I50: 0.6373020055 | J50: -0.5176953712 | K50: 1.232246474
A51: 氧化镁 | B51: 12 | C51: 0 | D51: 1.98 | E51: 1.079166667 | F51: 0.6761449325 | G51: 0.4571719697 | H51: -0.4338003221 | I51: 0.6373020055 | J51: -1.014588759 | K51: 1.232246474
A52: 氧化铝 | B52: 12 | C52: 3.05 | D52: 11.15 | E52: 6.62 | F52: 2.491509218 | G52: 6.207618182 | H52: 0.4821727784 | I52: 0.6373020055 | J52: -0.4922455044 | K52: 1.232246474
A53: 氧化铁 | B53: 12 | C53: 0 | D53: 6.04 | E53: 1.931666667 | F53: 1.666694242 | G53: 2.777869697 | H53: 1.175870417 | I53: 0.6373020055 | J53: 2.567947838 | K53: 1.232246474
A54: 氧化铜 | B54: 12 | C54: 0 | D54: 5.09 | E54: 2.4525 | F54: 1.659989732 | G54: 2.755565909 | H54: 0.1005956501 | I54: 0.6373020055 | J54: -1.058214172 | K54: 1.232246474
A55: 氧化铅 | B55: 12 | C55: 0 | D55: 1.62 | E55: 0.4116666667 | F55: 0.5889873179 | G55: 0.3469060606 | H55: 1.373589166 | I55: 0.6373020055 | J55: 0.4179671007 | K55: 1.232246474
A56: 氧化钡 | B56: 12 | C56: 0 | D56: 2.86 | E56: 0.5983333333 | F56: 0.9821019511 | G56: 0.9645242424 | H56: 1.493083471 | I56: 0.6373020055 | J56: 1.238170108 | K56: 1.232246474
A57: 五氧化二磷 | B57: 12 | C57: 0 | D57: 4.5 | E57: 1.4025 | F57: 1.433959078 | G57: 2.056238636 | H57: 1.677553079 | I57: 0.6373020055 | J57: 1.876197359 | K57: 1.232246474
A58: 氧化锶 | B58: 12 | C58: 0 | D58: 0.12 | E58: 0.04166666667 | F58: 0.04839859753 | G58: 0.002342424242 | H58: 0.5707242024 | I58: 0.6373020055 | J58: -1.452238803 | K58: 1.232246474
A59: 氧化锡 | B59: 12 | C59: 0 | D59: 2.36 | E59: 0.1966666667 | F59: 0.6812733176 | G59: 0.4641333333 | H59: 3.464101615 | I59: 0.6373020055 | J59: 12 | K59: 1.232246474
A60: 二氧化硫 | B60: 12 | C60: 0 | D60: 0.47 | E60: 0.1016666667 | F60: 0.1855132112 | G60: 0.03441515152 | H60: 1.396431226 | I60: 0.6373020055 | J60: 0.05546322247 | K60: 1.232246474
A61: 有效个案数（成列） | B61: 12

Sheet 铅钡玻璃
B1: 二氧化硅 | C1: 氧化钠 | D1: 氧化钾 | E1: 氧化钙 | F1: 氧化镁 | G1: 氧化铝 | H1: 氧化铁 | I1: 氧化铜 | J1: 氧化铅 | K1: 氧化钡 | L1: 五氧化二磷 | M1: 氧化锶 | N1: 氧化锡 | O1: 二氧化硫
A2: 二氧化硅 | B2: 1 | G2: 0.498 | I2: -0.604 | J2: -0.589 | K2: -0.761 | L2: -0.593 | M2: -0.737 | O2: -0.725
A3: 氧化钠 | C3: 1
A4: 氧化钾 | D4: 1 | G4: 0.591
A5: 氧化钙 | E5: 1 | J5: 0.519 | M5: 0.469
A6: 氧化镁 | B6: 0.511 | F6: 1 | G6: 0.669 | I6: -0.545 | K6: -0.781 | O6: -0.534
A7: 氧化铝 | B7: 0.498 | D7: 0.591 | F7: 0.669 | G7: 1 | H7: 0.676 | I7: -0.566 | K7: -0.721 | M7: -0.555 | O7: -0.708
A8: 氧化铁 | G8: 0.676 | H8: 1 | I8: -0.682 | K8: -0.57 | O8: -0.534
A9: 氧化铜 | B9: -0.604 | F9: -0.545 | G9: -0.566 | H9: -0.682 | I9: 1 | K9: 0.706 | N9: -0.598 | O9: 0.506
A10: 氧化铅 | B10: -0.589 | E10: 0.519 | J10: 1
A11: 氧化钡 | B11: -0.761 | F11: -0.781 | G11: -0.721 | H11: -0.57 | I11: 0.706 | K11: 1 | M11: 0.682 | O11: 0.717
A12: 五氧化二磷 | B12: -0.593 | L12: 1
A13: 氧化锶 | B13: -0.737 | E13: 0.469 | G13: -0.555 | K13: 0.682 | M13: 1 | O13: 0.568
A14: 氧化锡 | I14: -0.598 | N14: 1
A15: 二氧化硫 | B15: -0.725 | F15: -0.534 | G15: -0.708 | H15: -0.534 | I15: 0.506 | K15: 0.717 | M15: 0.568 | O15: 1
A20: 已风化铅钡玻璃描述统计
B21: N | C21: 最小值 | D21: 最大值 | E21: 平均值 | F21: 标准差 | G21: 方差 | H21: 偏度 | J21: 峰度 | N21: 已风化 | O21: 未风化
B22: 统计 | C22: 统计 | D22: 统计 | E22: 统计 | F22: 统计 | G22: 统计 | H22: 统计 | I22: 标准误差 | J22: 统计 | K22: 标准误差 | M22: 二氧化硅 | N22: 33.61472222 | O22: 53.44384615
A23: 二氧化硅 | B23: 36 | C23: 3.72 | D23: 68.08 | E23: 33.61472222 | F23: 17.22148401 | G23: 296.5795113 | H23: 0.3978330932 | I23: 0.3925439368 | J23: -0.7777608161 | K23: 0.7680761066 | M23: 氧化钠 | N23: 0.9525 | O23: 0.7715384615
A24: 氧化钠 | B24: 36 | C24: 0 | D24: 7.92 | E24: 0.9525 | F24: 1.920000558 | G24: 3.686402143 | H24: 2.372657395 | I24: 0.3925439368 | J24: 5.327811377 | K24: 0.7680761066 | M24: 氧化钾 | N24: 0.1427777778 | O24: 0.2584615385
A25: 氧化钾 | B25: 36 | C25: 0 | D25: 1.05 | E25: 0.1427777778 | F25: 0.2147105841 | G25: 0.04610063492 | H25: 2.354964074 | I25: 0.3925439368 | J25: 7.973327615 | K25: 0.7680761066 | M25: 氧化钙 | N25: 2.345555556 | O25: 1.231538462
A26: 氧化钙 | B26: 36 | C26: 0 | D26: 6.4 | E26: 2.345555556 | F26: 1.611576769 | G26: 2.597179683 | H26: 0.5903683994 | I26: 0.3925439368 | J26: -0.2104635046 | K26: 0.7680761066 | M26: 氧化镁 | N26: 0.7008333333 | O26: 0.4923076923
A27: 氧化镁 | B27: 36 | C27: 0 | D27: 2.73 | E27: 0.7008333333 | F27: 0.6561418618 | G27: 0.4305221429 | H27: 0.7198025845 | I27: 0.3925439368 | J27: 0.7640582552 | K27: 0.7680761066 | M27: 氧化铝 | N27: 3.838333333 | O27: 3.194615385
A28: 氧化铝 | B28: 36 | C28: 0.45 | D28: 14.34 | E28: 3.838333333 | F28: 3.412625717 | G28: 11.64601429 | H28: 1.972511673 | I28: 0.3925439368 | J28: 3.821180893 | K28: 0.7680761066 | M28: 氧化铁 | N28: 0.5558333333 | O28: 0.9330769231
A29: 氧化铁 | B29: 36 | C29: 0 | D29: 2.74 | E29: 0.5558333333 | F29: 0.6919635622 | G29: 0.4788135714 | H29: 1.335326231 | I29: 0.3925439368 | J29: 1.422425924 | K29: 0.7680761066 | M29: 氧化铜 | N29: 1.996111111 | O29: 1.556923077
A30: 氧化铜 | B30: 36 | C30: 0 | D30: 10.57 | E30: 1.996111111 | F30: 2.487958748 | G30: 6.18993873 | H30: 2.429337658 | I30: 0.3925439368 | J30: 6.22781 | K30: 0.7680761066 | M30: 氧化铅 | N30: 36.87194444 | O30: 23.59384615
A31: 氧化铅 | B31: 36 | C31: 12.31 | D31: 70.21 | E31: 36.87194444 | F31: 15.16372152 | G31: 229.9384504 | H31: 0.09786638587 | I31: 0.3925439368 | J31: -0.734801494 | K31: 0.7680761066 | M31: 氧化钡 | N31: 10.48722222 | O31: 10.49923077
A32: 氧化钡 | B32: 36 | C32: 0 | D32: 35.45 | E32: 10.48722222 | F32: 8.867532629 | G32: 78.63313492 | H32: 1.640734963 | I32: 0.3925439368 | J32: 2.297264128 | K32: 0.7680761066 | M32: 五氧化二磷 | N32: 4.155277778 | O32: 0.9038461538
A33: 五氧化二磷 | B33: 36 | C33: 0 | D33: 14.13 | E33: 4.155277778 | F33: 4.150624384 | G33: 17.22768278 | H33: 0.7242686667 | I33: 0.3925439368 | J33: -0.5158306521 | K33: 0.7680761066 | M33: 氧化锶 | N33: 0.3663888889 | O33: 0.2969230769
A34: 氧化锶 | B34: 36 | C34: 0 | D34: 1.12 | E34: 0.3663888889 | F34: 0.2452654862 | G34: 0.06015515873 | H34: 0.8933617024 | I34: 0.3925439368 | J34: 1.450667311 | K34: 0.7680761066 | M34: 氧化锡 | N34: 0.05583333333 | O34: 0.06461538462
A35: 氧化锡 | B35: 36 | C35: 0 | D35: 1.31 | E35: 0.05583333333 | F35: 0.2316200707 | G35: 0.05364785714 | H35: 4.974621818 | I35: 0.3925439368 | J35: 26.24411478 | K35: 0.7680761066 | M35: 二氧化硫 | N35: 0.9866666667 | O35: 0.2815384615
A36: 二氧化硫 | B36: 36 | C36: 0 | D36: 15.95 | E36: 0.9866666667 | F36: 3.608541454 | G36: 13.02157143 | H36: 3.923466839 | I36: 0.3925439368 | J36: 14.5408127 | K36: 0.7680761066
A37: 有效个案数（成列） | B37: 36
A40: 未风化铅钡玻璃描述统计
B41: N | C41: 最小值 | D41: 最大值 | E41: 平均值 | F41: 标准差 | G41: 方差 | H41: 偏度 | J41: 峰度
B42: 统计 | C42: 统计 | D42: 统计 | E42: 统计 | F42: 统计 | G42: 统计 | H42: 统计 | I42: 标准误差 | J42: 统计 | K42: 标准误差
A43: 二氧化硅 | B43: 13 | C43: 31.94 | D43: 75.51 | E43: 53.44384615 | F43: 14.58727101 | G43: 212.7884756 | H43: -0.1893230709 | I43: 0.6163360527 | J43: -1.339328407 | K43: 1.190874392
A44: 氧化钠 | B44: 13 | C44: 0 | D44: 4.66 | E44: 0.7715384615 | F44: 1.538309928 | G44: 2.366397436 | H44: 1.845654621 | I44: 0.6163360527 | J44: 2.449809946 | K44: 1.190874392
A45: 氧化钾 | B45: 13 | C45: 0 | D45: 1.41 | E45: 0.2584615385 | F45: 0.3981173645 | G45: 0.1584974359 | H45: 2.384944499 | I45: 0.6163360527 | J45: 6.077688702 | K45: 1.190874392
A46: 氧化钙 | B46: 13 | C46: 0 | D46: 4.49 | E46: 1.231538462 | F46: 1.457702794 | G46: 2.124897436 | H46: 1.789018423 | I46: 0.6163360527 | J46: 2.200300946 | K46: 1.190874392
A47: 氧化镁 | B47: 13 | C47: 0 | D47: 1.67 | E47: 0.4923076923 | F47: 0.5454685119 | G47: 0.2975358974 | H47: 0.754933746 | I47: 0.6163360527 | J47: -0.1456167967 | K47: 1.190874392
A48: 氧化铝 | B48: 13 | C48: 1.44 | D48: 5.45 | E48: 3.194615385 | F48: 1.385241347 | G48: 1.91889359 | H48: 0.2636997068 | I48: 0.6163360527 | J48: -1.254726928 | K48: 1.190874392
A49: 氧化铁 | B49: 13 | C49: 0 | D49: 4.59 | E49: 0.9330769231 | F49: 1.44513197 | G49: 2.08840641 | H49: 1.649150048 | I49: 0.6163360527 | J49: 2.308100634 | K49: 1.190874392
A50: 氧化铜 | B50: 13 | C50: 0 | D50: 8.46 | E50: 1.556923077 | F50: 2.490918119 | G50: 6.204673077 | H50: 2.210291503 | I50: 0.6163360527 | J50: 4.698428505 | K50: 1.190874392
A51: 氧化铅 | B51: 13 | C51: 9.3 | D51: 39.22 | E51: 23.59384615 | F51: 9.094393455 | G51: 82.70799231 | H51: 0.4192021315 | I51: 0.6163360527 | J51: -0.6891952524 | K51: 1.190874392
A52: 氧化钡 | B52: 13 | C52: 3.42 | D52: 26.23 | E52: 10.49923077 | F52: 6.949783524 | G52: 48.29949103 | H52: 1.501367494 | I52: 0.6163360527 | J52: 1.786239606 | K52: 1.190874392
A53: 五氧化二磷 | B53: 13 | C53: 0 | D53: 5.75 | E53: 0.9038461538 | F53: 1.570581307 | G53: 2.466725641 | H53: 2.810252371 | I53: 0.6163360527 | J53: 8.651512577 | K53: 1.190874392
A54: 氧化锶 | B54: 13 | C54: 0 | D54: 0.91 | E54: 0.2969230769 | F54: 0.3137510854 | G54: 0.09843974359 | H54: 0.8835010948 | I54: 0.6163360527 | J54: -0.0119926726 | K54: 1.190874392
A55: 氧化锡 | B55: 13 | C55: 0 | D55: 0.44 | E55: 0.06461538462 | F55: 0.1579353974 | G55: 0.02494358974 | H55: 2.191310701 | I55: 0.6163360527 | J55: 3.31938463 | K55: 1.190874392
A56: 二氧化硫 | B56: 13 | C56: 0 | D56: 3.66 | E56: 0.2815384615 | F56: 1.015101359 | G56: 1.030430769 | H56: 3.605551275 | I56: 0.6163360527 | J56: 13 | K56: 1.190874392
A57: 有效个案数（成列） | B57: 13
